Cogmind - Beta 17 @@@ ROGUE MODE // 2026.08.15 @ 21:22:08 Player: biznut Result: Destroyed by C-17 Slicer with Blade Saw Performance ------------- Evolutions (3) 1500 Regions Visited (5) 1000 Robots Destroyed (68) 340 Value Destroyed (1773) 1773 Prototype IDs (7) 140 Alien Tech Used (0) 0 Bonus (106) 106 TOTAL SCORE: 4859 Bonus ------- Follower Combat Kills 106 Cogmind --------- Core Integrity 0/700 Matter 88/300 Energy 80/100 System Corruption 5% Temperature Cool (0) Movement Core (100) Ox1 Location -7/Factory Parts ------- > --- POWER (2) -------- (None) > --- PROPULSION (5) --- (None) > --- UTILITY (4) ------ (None) > --- WEAPON (2) ------- Great Axe > --- INVENTORY (5) ---- Light Ion Engine Light Nuclear Core Gravmag System Bomb Drone Bay (0/16) Peak State ------------ > --- POWER ------------ Light Deuterium Engine Light Nuclear Core > --- PROPULSION ------- Wheel Wheel Wheel Compact Wheel Improved Cesium-ion Thruster > --- UTILITY ---------- Small Storage Unit Transmission Jammer Bomb Drone Bay > --- WEAPON ----------- Flak Gun > --- INVENTORY -------- Light Ion Engine Light Nuclear Core Huge Storage Unit Tractor Beam [Rating: 38] Favorites ----------- Power Light Nuclear Core Engine Light Deuterium Engine Power Core Light Nuclear Core Propulsion Aluminum Leg Leg Aluminum Leg Wheel Wheel Flight Unit Improved Cesium-ion Thruster Utility Large Storage Unit Device Seismic Detector Storage Large Storage Unit Protection Improved Power Shielding Weapon Enhanced Autogun Ballistic Gun Enhanced Autogun Ballistic Cannon Flak Cannon Launcher Rocket Launcher Special Weapon Mining Laser Slashing Weapon Great Axe Build | -11 -10 -10 -9 -8 -7 ------- Run | Yrd Mat Min Mat Mat Fac Slots Evolved 6 | . . . 2 2 2 Power 1 | . . . . . 1 Propulsion 3 | . . . 2 1 . Utility 2 | . . . . 1 1 Weapon . | . . . . . . Parts Attached 60 | 7 8 3 11 14 17 Power 12 | 1 2 1 2 2 4 Engine 6 | 1 2 . 1 1 1 Core 6 | . . 1 1 1 3 Reactor . | . . . . . . Propulsion 20 | 2 . . 5 6 7 Treads . | . . . . . . Leg 12 | 2 . . 5 5 . Wheel 6 | . . . . . 6 Hover . | . . . . . . Flight 2 | . . . . 1 1 Utility 13 | 2 2 2 . 4 3 Device 7 | 1 1 1 . 2 2 Storage 4 | 1 1 1 . . 1 Processor . | . . . . . . Hackware . | . . . . . . Protection 2 | . . . . 2 . Artifact . | . . . . . . Weapon 15 | 2 4 . 4 2 3 Energy Gun . | . . . . . . Energy Cannon . | . . . . . . Ballistic Gun 8 | 2 1 . 3 1 1 Ballistic Cannon 1 | . . . . 1 . Launcher 4 | . 3 . . . 1 Special Weapon 1 | . . . 1 . . Impact Weapon . | . . . . . . Slashing Weapon 1 | . . . . . 1 Piercing Weapon . | . . . . . . Special Melee Weapon . | . . . . . . Unidentified Prototypes 5 | . . 1 1 1 2 Parts Lost 20 | . 1 . 1 12 6 Power 1 | . . . . . 1 Propulsion 13 | . . . 1 7 5 Utility . | . . . . . . Weapon 6 | . 1 . . 5 . Highest Loss Streak 4 | . 1 . 1 4 3 To Critical Strikes . | . . . . . . Average Backups 10 | 2 8 10 13 13 3 Power 1 | . 1 1 1 2 1 Propulsion . | . . 2 . . . Utility 5 | . 3 3 8 8 2 Weapon 2 | 1 3 3 3 2 . Tool/Special . | . . . . . . Unused Backups 32 | . 5 3 3 18 3 Power 5 | . . . . 4 1 Propulsion 3 | . 1 1 . . 1 Utility 16 | . 1 2 . 12 1 Weapon 8 | . 3 . 3 2 . Tool/Special . | . . . . . . Average Slot Usage (%) 87 | . 99 100 99 88 52 Engine 6 | . 14 7 5 2 4 Core 5 | . . 6 5 6 5 Leg 27 | . 28 28 43 34 . Wheel 2 | . . . . . 15 Device 11 | . 14 14 11 8 9 Storage 10 | . 14 14 11 8 4 Protection 2 | . . . . 8 . Ballistic Gun 13 | . 14 14 16 16 4 Launcher 5 | . 13 14 4 . . Peak Build Rating 38 | 9 10 19 29 33 38 Average Rating 19 | 6 8 12 24 25 23 On Entrance 10 | . 9 10 13 29 2 Avg Prop Armor Cover (%) 1 | . . . . . 1 Naked Turns 97 | . . . . 11 86 Heaviest Build 35 | 14 24 34 35 35 28 Greatest Support 50 | 20 20 20 40 50 46 Greatest Overweight (x) 4 | 4 1 1 1 3 2 Average Overweight (x) . | . . 1 . . . Largest Inventory Capacity 15 | 8 10 15 15 15 8 Average Capacity 12 | 7 9 13 15 14 6 Most Carried 15 | 4 10 13 15 15 8 Average Carried 10 | 2 9 11 14 14 4 Final Capacity 15 | 8 10 15 15 5 5 Final Carried 15 | 4 10 13 15 5 5 Class Distribution -------------------- 58% | Mutant 41% | Scavenger-Mutant Dominant Class ---------------- Mutant | -10/Materials Mutant | -10/Mines Mutant | -9/Materials Scavenger-Mutant | -8/Materials Scavenger-Mutant | -7/Factory Resources | -11 -10 -10 -9 -8 -7 ----------- Run | Yrd Mat Min Mat Mat Fac Matter Collected 2224 | 294 83 172 492 884 299 Remotely . | . . . . . . Salvage Created 2025 | 118 150 31 379 1143 204 Parts 150 | 5 12 9 27 75 22 Haulers Intercepted . | . . . . . . Recyclers Shooed 4 | 1 . 1 . . 2 Parts Field Recycled . | . . . . . . Retrieved Matter . | . . . . . . Parts Self-Destructed . | . . . . . . Prevented . | . . . . . . Parts Restored . | . . . . . . Kills | -11 -10 -10 -9 -8 -7 ------- Run | Yrd Mat Min Mat Mat Fac Combat Hostiles Destroyed 47 | . 4 3 12 24 4 Melee 1 | . . . . . 1 Guns 38 | . 1 . 11 23 3 Cannons 1 | . . . . 1 . AOE 7 | . 3 3 1 . . Classes Destroyed 12 | 2 2 1 3 2 2 Worker 3 | . . . 1 . 2 Builder 4 | . . . 1 1 2 Tunneler 3 | 1 1 1 . . . Recycler 3 | 1 . . . 1 1 Operator 1 | . . . . 1 . Watcher 7 | . 2 . 2 3 . Swarmer 15 | . . 3 6 6 . Cutter 2 | . . . . . 2 Grunt 18 | . 4 . 5 9 . Sentry 8 | . . . 1 7 . Hunter 2 | . . . . 2 . Programmer 2 | . . . . . 2 Best Kill Streak 7 | 2 6 3 6 7 2 Combat Bots Only 7 | . 4 3 6 7 1 Max Kills in Single Turn 3 | 1 2 3 2 2 1 Gunslinging 1 | . . . 1 1 . Exploded 3 | . 1 3 1 . . Melee 1 | . . . . . 1 Uniques/NPCs Destroyed . | . . . . . . Combat | -11 -10 -10 -9 -8 -7 -------- Run | Yrd Mat Min Mat Mat Fac Hostile Shots Fired 380 | . 12 2 56 202 108 Missed 119 | . 5 1 14 67 32 Hits 261 | . 7 1 42 135 76 Melee 26 | . . . . . 26 Projectile 235 | . 7 1 42 135 50 AOE 2 | . . . . . 2 Critical Strikes 15 | . . . 2 2 11 Part Disruptions 1 | . . . . . 1 Damage Taken 3752 | . 159 6 504 1846 1237 Core 1186 | . 13 6 12 441 714 Absorbed by Shields . | . . . . . . Redirected to Shielding 85 | . . . . 85 . Regen/Repaired (Parts) 11 | . . . 11 . . Core Remaining (%) 77 | 100 . 92 97 19 . Volleys Fired 201 | 6 7 2 48 107 31 Largest 2 | 2 2 2 2 2 2 Hottest 137 | 40 53 53 100 137 28 Shots Fired 334 | 12 15 4 79 192 32 Gun 294 | 12 8 2 69 172 31 Cannon 11 | . . . . 11 . Launcher 17 | . 7 2 7 . 1 Special 12 | . . . 3 9 . Kinetic 305 | 12 8 2 69 183 31 Thermal 12 | . . . 3 9 . Explosive 17 | . 7 2 7 . 1 Electromagnetic . | . . . . . . Robot Hit Streak 9 | 6 7 1 9 9 5 Robot Miss Streak 19 | 2 3 1 7 8 19 Penetration Max . | . . . . . . Secondary Targets 6 | . . . 2 4 . Max Gunslinging Chain 1 | . . . 1 1 . Shots Hit Robots 208 | 7 8 1 42 123 27 Core Hits 134 | 3 11 3 22 61 34 Critical Kills . | . . . . . . Critical Parts Destroyed 1 | . . . . 1 . Critical Strikes 1 | . . . . 1 . Destroy 1 | . . . . 1 . Melee Attacks 1 | . . . . . 1 Impact . | . . . . . . Slashing 1 | . . . . . 1 Piercing . | . . . . . . Sneak Attacks . | . . . . . . Combat Hostiles . | . . . . . . Follow-up Attacks . | . . . . . . Damage Inflicted 4020 | 82 392 168 855 2040 483 Guns 3126 | 82 36 . 688 1880 440 Cannons 123 | . . . . 123 . Explosions 654 | . 339 166 136 . 13 Melee 30 | . . . . . 30 Ramming 87 | . 17 2 31 37 . Kinetic 3249 | 82 36 . 688 2003 440 Thermal . | . . . . . . Explosive 654 | . 339 166 136 . 13 Electromagnetic . | . . . . . . Impact . | . . . . . . Slashing 30 | . . . . . 30 Piercing . | . . . . . . Highest Corruption 5 | . 1 1 . . 5 Average Corruption 1 | . 1 1 . . 4 Corruption Purged . | . . . . . . Corruption Blocked . | . . . . . . Effects 17 | . 5 4 . . 8 Message Errors 4 | . 2 1 . . 1 Matter Fused 6 | . 1 2 . . 3 Heat Flow Errors 2 | . . 1 . . 1 Data Loss (minor) 2 | . 1 . . . 1 Data Loss (major) 1 | . . . . . 1 Misfires 1 | . 1 . . . . Alerts 1 | . . . . . 1 Overload Shots . | . . . . . . Overflow Damage 64 | . 6 32 . . 26 Projectiles . | . . . . . . Explosions 38 | . 6 32 . . . Melee 26 | . . . . . 26 Knockbacks 11 | . . . . 11 . Impact . | . . . . . . Kinetic 11 | . . . . 11 . Secondary . | . . . . . . Self-Inflicted Damage 161 | . 84 . 49 . 28 Shots 6 | . 4 . 1 . 1 Rammed . | . . . . . . Targets Rammed 14 | . 1 2 3 8 . Kicked 14 | . 1 2 3 8 . Crushed . | . . . . . . Highest Temperature 183 | . 12 183 94 69 76 Average Temperature 19 | . 10 99 19 14 34 Received Heat Transfer 984 | . 48 . 216 684 36 Siege Activations . | . . . . . . Martial Activations . | . . . . . . Shielding Activations . | . . . . . . Robots Disrupted . | . . . . . . Combat Hostiles . | . . . . . . Robots Corrupted . | . . . . . . Combat Hostiles . | . . . . . . Parts Fried . | . . . . . . Impact Corruptions . | . . . . . . Robots Melted . | . . . . . . Combat Hostiles . | . . . . . . Parts Melted . | . . . . . . Heat Transferred . | . . . . . . Parts Sabotaged . | . . . . . . Parts Stolen . | . . . . . . Parts Stripped . | . . . . . . Power Chain Reactions . | . . . . . . Alert | -11 -10 -10 -9 -8 -7 ------- Run | Yrd Mat Min Mat Mat Fac Maximum Alert Level 1 | . . . . 1 . Low Security (%) 88 | 100 100 100 100 61 100 Level 1 11 | . . . . 38 . Level 2 . | . . . . . . Level 3 . | . . . . . . Level 4 . | . . . . . . Level 5 . | . . . . . . High Security . | . . . . . . Max Security . | . . . . . . Peak Influence 303 | 5 165 126 199 303 109 Initial 109 | . . 39 3 73 109 Average 62 | . 38 31 49 135 21 Influence Increases 1836 | 10 256 207 460 695 208 Destroy 0b10 Robot/C 1060 | . 80 120 300 480 80 Destroy 0b10 Robot/NC 110 | 10 15 10 20 30 25 Destroy Leader 274 | . 24 20 64 146 20 Allied During Kill 30 | . . 21 7 . 2 Successful Hack 38 | . 19 . 19 . . Disable Machine 60 | . 45 15 . . . Destroy Structure 159 | . 73 21 50 9 6 Lose Combat Pursuer 105 | . . . . 30 75 Influence Decreases 1794 | 10 155 299 294 630 406 Entered New Map 301 | . . 62 6 102 131 Time Decay 1240 | 10 145 217 258 408 202 Lost Part 187 | . 10 . 10 120 47 Lost Ally 66 | . . 20 20 . 26 Squads Dispatched 14 | . 1 . 2 5 6 Investigation 3 | . . . 1 2 . Extermination 1 | . . . . . 1 Reinforcement 7 | . 1 . 1 2 3 Assault 2 | . . . . . 2 Garrison 1 | . . . . 1 . Intercept . | . . . . . . Searches Triggered . | . . . . . . Construction Impeded . | . . . . . . Haulers Reinforced . | . . . . . . Active Scanning Responses . | . . . . . . Cargo Convoy Interrupts . | . . . . . . Stealth | -11 -10 -10 -9 -8 -7 --------- Run | Yrd Mat Min Mat Mat Fac Distress Signals 5 | . 1 . 2 2 . Communications Jammed 6 | . . . . . 6 Distress Signals 6 | . . . . . 6 Times Spotted 90 | . 9 2 19 42 18 Peak Tracking Total 10 | . 4 1 4 10 5 Tactical Retreats 5 | . . . . 1 4 Traps | -11 -10 -10 -9 -8 -7 ------- Run | Yrd Mat Min Mat Mat Fac Traps Triggered 2 | . 1 . . 1 . Indirectly . | . . . . . . Trap Hack Attempts . | . . . . . . Triggered . | . . . . . . Disarmed . | . . . . . . Reprogrammed . | . . . . . . Reused . | . . . . . . Traps Extracted . | . . . . . . Installed . | . . . . . . Triggered . | . . . . . . Machines | -11 -10 -10 -9 -8 -7 ---------- Run | Yrd Mat Min Mat Mat Fac Machines Disabled 4 | . 3 1 . . . Max in Single Turn 2 | . 2 1 . . . Garrison Access 1 | . . . . . 1 Machines Repaired . | . . . . . . Machines Dismantled . | . . . . . . Machines Sabotaged . | . . . . . . Overloaded Fab Kills . | . . . . . . Hacking | -11 -10 -10 -9 -8 -7 --------- Run | Yrd Mat Min Mat Mat Fac Machines Accessed 14 | . 3 1 5 3 2 Terminals 9 | . 3 . 3 2 1 Fabricators . | . . . . . . Repair Stations 2 | . . . 1 1 . Recycling Units 1 | . . . . . 1 Scanalyzers 1 | . . . 1 . . Garrison Access . | . . . . . . Total Hacks 34 | . 8 1 12 10 3 Successful 17 | . 3 1 7 5 1 Failed 17 | . 5 . 5 5 2 Catastrophic 6 | . 2 . . 2 2 Database Lockouts . | . . . . . . Manual 16 | . 6 3 4 2 1 Terminals 21 | . 8 . 7 5 1 Fabricators . | . . . . . . Repair Stations 7 | . . . 2 5 . Recycling Units 2 | . . . . . 2 Scanalyzers 3 | . . . 3 . . Garrison Access . | . . . . . . Terminal Hacks 7 | . 2 1 1 3 . Record 2 | . . . . 2 . Prototype ID Bank 1 | . 1 . . . . Open Door 1 | . . 1 . . . Alert Level 1 | . . . . 1 . Zone Layout 2 | . 1 . 1 . . Fabricator Hacks . | . . . . . . Repair Station Hacks 4 | . . . 2 2 . Scan Component 3 | . . . 1 2 . Repair 1 | . . . 1 . . Recycling Unit Hacks 1 | . . . . . 1 Report Inventory 1 | . . . . . 1 Scanalyzer 2 | . . . 2 . . Insert Component 1 | . . . 1 . . Retrieve Study 1 | . . . 1 . . Garrison Access Hacks . | . . . . . . Unauthorized Hacks 3 | . 1 . 2 . . Terminals 3 | . 1 . 2 . . Botnet 3 | . 1 . 2 . . Fabricators . | . . . . . . Repair Stations . | . . . . . . Recycling Units . | . . . . . . Scanalyzers . | . . . . . . Garrison Access . | . . . . . . Data Cores Recovered 1 | . . . . 1 . Used . | . . . . . . Hacking Detections 12 | . 3 . 5 2 2 Full Trace Events 3 | . 1 . 1 1 . Feedback Events . | . . . . . . Feedback Blocked . | . . . . . . Robot Schematics Acquired . | . . . . . . Robots Built . | . . . . . . Authchips . | . . . . . . Time . | . . . . . . Total Robot Build Rating . | . . . . . . Part Schematics Acquired . | . . . . . . Parts Built . | . . . . . . Authchips . | . . . . . . Time . | . . . . . . Total Part Build Rating . | . . . . . . Part Studies Acquired 1 | . . . 1 . . Parts Repaired 1 | . . . 1 . . Time 108 | . . . 108 . . Parts Recycled . | . . . . . . Recycled Matter . | . . . . . . Retrieved Matter . | . . . . . . Retrieved Components . | . . . . . . Parts Scanalyzed 1 | . . . 1 . . Part Schematics Acquired . | . . . . . . Parts Damaged . | . . . . . . Bothacking | -11 -10 -10 -9 -8 -7 ------------ Run | Yrd Mat Min Mat Mat Fac Used RIF Installer . | . . . . . . Robots Hacked . | . . . . . . Non-combat . | . . . . . . Combat . | . . . . . . Robot Hacks Applied . | . . . . . . Relay Couplers Released 1 | . . . . . 1 Machine Destruction 1 | . . . . . 1 Fabnet Peak Effective % . | . . . . . . Robots Rewired . | . . . . . . Allies Hacked . | . . . . . . Hacks Repelled . | . . . . . . Allies | -11 -10 -10 -9 -8 -7 -------- Run | Yrd Mat Min Mat Mat Fac Total Allies 3 | . . 3 . . . Largest Group 3 | . . 3 1 . . Highest-Rated Group 40 | . . 40 16 . . Highest-Rated Ally 16 | . . 16 16 . . Total Orders 3 | . . 3 . . . FOLLOW 1 | . . 1 . . . GUARD 2 | . . 2 . . . Ally Attacks 38 | . . 12 16 . 10 Total Damage 277 | . . 103 174 . . Kills 7 | . . 4 3 . . Allies Corrupted 1 | . . . . . 1 Allies Melted . | . . . . . . Intel | -11 -10 -10 -9 -8 -7 ------- Run | Yrd Mat Min Mat Mat Fac Active Infowar (turns) 4195 | 101 641 816 693 1257 687 Sensors 1382 | . . 1 401 980 . Terrain 101 | 101 . . . . . Seismic 2025 | . 641 815 292 277 . Jamming 687 | . . . . . 687 Robot Analysis Total . | . . . . . . Derelict Logs Recovered . | . . . . . . Drone Launches 17 | . . . . . 17 Drone Recoveries 1 | . . . . . 1 Exploration | -11 -10 -10 -9 -8 -7 ------------- Run | Yrd Mat Min Mat Mat Fac Turns Passed 4388 | 176 641 816 693 1271 791 Spaces Moved 2866 | 118 401 417 337 730 863 Core 341 | 34 . . . 23 284 Treads . | . . . . . . Legs 1946 | 84 401 417 337 707 . Wheels 513 | . . . . . 513 Hover . | . . . . . . Flight 66 | . . . . . 66 Fastest Speed 35 | 50 120 190 105 50 35 Average Speed 118 | 112 135 190 116 116 78 Slowest Speed 315 | 250 190 190 190 315 150 Overloaded Moves . | . . . . . . Propulsion Burnouts . | . . . . . . Robots Hopped . | . . . . . . Potential Cave-ins 5 | . . . . 5 . Cave-ins Triggered . | . . . . . . Exploration Rate (%) 38 | 5 54 75 32 42 20 Regions Visited 5 Branch Regions 1 Pre-discovered Areas 1 | . . 1 . . . Known Exits Taken . | . . . . . . Unknown Exits Taken 5 | 1 1 1 1 1 . Scrap Searched . | . . . . . . Spaces Dug 10 | . . . 3 7 . Terrain Destroyed 162 | . 73 21 56 8 4 Melee . | . . . . . . Projectile 11 | . . . 3 8 . AOE 151 | . 73 21 53 . 4 Terrain Rammed . | . . . . . . Walls Destroyed . | . . . . . . Machines Disabled . | . . . . . . Actions | -11 -10 -10 -9 -8 -7 --------- Run | Yrd Mat Min Mat Mat Fac Total 3607 | 147 493 436 583 1007 941 Wait 326 | 13 43 2 151 105 12 Move 2861 | 117 400 416 336 729 863 Hop . | . . . . . . Pick Up 64 | 4 18 5 16 16 5 Fast Attach 37 | 7 3 1 3 10 13 Attach 21 | . 3 . 6 5 7 Detach 12 | . 2 1 1 3 5 Swap 17 | . 2 3 6 5 1 Drop 53 | . 14 4 13 19 3 Fire 201 | 6 7 2 48 107 31 Melee 1 | . . . . . 1 Ram . | . . . . . . Kick 14 | . 1 2 3 8 . Crush . | . . . . . . Escape Stasis . | . . . . . . Rewire . | . . . . . . Trap . | . . . . . . Miscellaneous . | . . . . . . Route ------- -11/Scrapyard -10/Materials -10/Mines -9/Materials -8/Materials -7/Factory (discovered 1 exit: [*Fac]) History --------- Turn | Location | Event 10 | -11/Scrapyard | Discovered new exit (range 16) 177 | -11/Scrapyard | Entered Materials 303 | -10/Materials | Build established: Mutant 319 | -10/Materials | Discovered new exit (range 15) 818 | -10/Materials | Entered Mines 825 | -10/Mines | Found the Drone Emporium 830 | -10/Mines | Met a Derelict bent on vengeance 837 | -10/Mines | Found Prototype Device 976 | -10/Mines | Assisted by bots powering up and referring to "LRC-V3" 1114 | -10/Mines | Found a damaged Exp. Sensor Array with a note attached 1120 | -10/Mines | Found Prototype Device 1121 | -10/Mines | Identified Exp. Sensor Array 1184 | -10/Mines | Learned location of Storage (-7) 1623 | -10/Mines | Discovered new exit (range 8) 1634 | -10/Mines | Entered Materials 1634 | -9/Materials | Accompanied by 1 ally 1634 | -9/Materials | Evolved 2 slots: Propulsion x2 1924 | -9/Materials | Repaired Exp. Sensor Array 2305 | -9/Materials | Discovered new exit (range 16) 2327 | -9/Materials | Entered another Materials area 2327 | -8/Materials | Evolved 2 slots: Propulsion x1, Utility x1 2386 | -8/Materials | Identified Bomb Drone Bay 2628 | -8/Materials | Build established: Scavenger-Mutant 3041 | -8/Materials | Garrison activated, responded to threat 3130 | -8/Materials | Destroyed 7 combat bots 3548 | -8/Materials | Lost 4 parts (2n2w) 3560 | -8/Materials | Core integrity fell below 50% 3587 | -8/Materials | Released all parts (6) 3590 | -8/Materials | Core integrity fell below 20% 3596 | -8/Materials | Discovered new exit (range 5) 3598 | -8/Materials | Entered Factory 3598 | -7/Factory | Evolved 2 slots: Power x1, Utility x1 3915 | -7/Factory | Lost 5 allies 4017 | -7/Factory | Lost 5 allies 4184 | -7/Factory | Lost 3 parts (1p2n) 4269 | -7/Factory | Discovered new exit (range 15) 4302 | -7/Factory | Released all parts (1) 4306 | -7/Factory | Core integrity fell below 50% 4327 | -7/Factory | Lost 3 parts (3n) 4354 | -7/Factory | Core integrity fell below 20% 4389 | -7/Factory | Destroyed by C-17 Slicer with Blade Saw Last Messages --------------- 04295_ Lgt. Nuclear Core severed. 04296_ Wheel destroyed. 04296_ Dropped Sml. Storage Unit. 04298_ Wheel severed. 04302_ Released Enh. Nuclear Core. 04304_ Knocked back. 04305_ R-06 Scavenger destroyed. 04319_ O-24 Administrator: "IFF HANDSHAKE FAILED. SECURING TERMINAL." 04321_ T-07 Excavator is excavating. 04322_ ALERT: Hostiles spotted, dispatching reinforcements to Terminal F007. 04325_ T-07 Excavator is excavating. 04344_ System corrupted: Heat flow error (+110). 04345_ U-05 Engineer lays Concrete. 04381_ Acquired Great Axe. 04385_ Destroyed Surge Thruster. 04385_ C-17 Slicer destroyed. 04386_ Great Axe severed. 04389_ Acquired Great Axe. Map ----- +----------------------------------------------------+ | #??????????????????????????????????????????????? | | #??????????????????????????????????????????????? | | #??????????????????????????????????????????????? | | #??????????????????????????????????????????????? | | #??????????????????????????????????????????????? | | ###??????????????????????????????????????????????? | | ?????????????????????????????????????????????????? | | ?????????????????????????????????????????????????? | | ?????????????????????????????????????????????????? | | ?????????????????????????????????????????????????? | | ?????????????????????????????????????????????????? | | ?????????????????????????????????????????????????? | | ?????????????????????????????????????????????????? | | ?????????????????????????????????? ?????????????? | | ????????????????????????????????? ???????????? | | ???????????????????????????????? ???????????? | | ???????????????????????????????? ???????????? | | ??????????????????????????????? #????????????? | | ??? ??????????????????###+### ?????????????? | | ??"" ""????????????????? ??????????????? | | ??"" ""?????????????????? ???????????????? | | ?""" ""?????????????????? ?????????????????? | | ? ??????????????????? ??????????????????? | | """ ""??????????????????? ???????????????????? | | """ ""????????????????####+######???????????????? | | """ ""????????????????# @c%!//* #???????????????? | | #????????????# """//** #???????????????? | | #????????????# """ * #???????????????? | | ###########?#+#????????# """ #???????????????? | | ####### ###??????# #???????????????? | | ######## #???????????????? | | + [#???????????????? | | ######## #???????????????? | | ###########??????###########???????????????? | | ###################????????????????????????? | | # #????????????????????????? | | # #????????????????????????? | | # #????????????????????????? | | # """ """ """ """ #????????????????????????? | | + """ """ """ """ #????????????????????????? | | # """ """ """ """ #????????????????????????? | | # #????????????????????????? | | #################+#????????????????????????? | | #??????????????# #????????????????????????? | | #??????????????# #????????????????????????? | | #??????????????# #????????????????????????? | | #??????????????# #????????????????????????? | | #??????????????# #????????????????????????? | | #??????????????# #????????????????????????? | | #??????????????# #????????????????????????? | +----------------------------------------------------+ Best States ------------- Heat Dissipation 34 Energy Generation 26 Energy Capacity 360 Matter Stores 300 Matter Capacity 300 Sight Range 16 Robot Scan Range 20 Terrain Scan Range 16 Terrain Scan Density 10 Jamming Range 12 Power Shielding 66 Utility Shielding 66 Evasion (%) 63 Item Schematics ----------------- None Robot Schematics ------------------ None Fabricated ------------ Nothing Repaired ---------- Exp. Sensor Array | 62% | -9/Materials Studied --------- Aluminum Leg | -9/Materials | Hacked Alien Tech Used ----------------- None Achievements -------------- True Hacker Challenges ------------ None Game ------ Seed TerrorTargetGenerator Manual? 0 Play Time 01:18:59 Cumulative 26.3 hours Start 2026.08.15 @ 19:56:41 End 2026.08.15 @ 21:22:08 Sessions 1 Manual Loads 0 Difficulty Rogue Special Mode None Game No. 35 Rogue 35 Adventurer 0 Explorer 0 Win Type - Total 0 Types 0/0/0/0/0/0/0/0/0/0 Lore% 18 Gallery% 18 Achievement% 15 Wizard Run 0 Options --------- Layout 1 ASCII 0 Keyboard 1 Movement Numpad Keybinds 1 Fullscreen 2 Font 32/SmallcapsGlow Map View 50x40 Zoom Use 22% Tactical HUD 1 Map Filters NONE Filters NONE Steam 1 RUN: 8524b4b9-7a57-4b19-b743-93cadb7df0ab